[Event "Titled Tuesday Blitz May 30 Early 2023"]
[White "Zheenbekov, Nurgazy"]
[Black "Djordjevic, Vuk"]
[WhiteFideId "13800485"]
[BlackFideId "902098"]
[WhiteElo "1975"]
[BlackElo "2452"]
[Result "0-1"]
[Round "07"]
[TimeControl "180+2"]
[Date "2023.05.30"]
[WhiteClock "0:00:00"]
[BlackClock "0:01:07"]

1. e4 {[%clk 0:02:59]}  d5 {[%clk 0:03:00]} 2. exd5 {[%clk 0:02:59]}  Qxd5 {[%clk 0:03:01]} 3. Nc3 {[%clk 0:02:59]}  Qd6 {[%clk 0:03:02]} 4. d4 {[%clk 0:02:59]}  Nf6 {[%clk 0:03:02]} 5. Nf3 {[%clk 0:02:56]}  c6 {[%clk 0:03:03]} 6. Bc4 {[%clk 0:02:54]}  Be6 {[%clk 0:03:03]} 7. Be2 {[%clk 0:02:50]}  Nbd7 {[%clk 0:03:02]} 8. O-O {[%clk 0:02:49]}  g6 {[%clk 0:03:03]} 9. Re1 {[%clk 0:02:37]}  Bg7 {[%clk 0:03:02]} 10. Ne5 {[%clk 0:02:26]}  Nxe5 {[%clk 0:02:59]} 11. dxe5 {[%clk 0:02:26]}  Qxe5 {[%clk 0:02:15]} 12. Bc4 {[%clk 0:02:26]}  Qf5 {[%clk 0:02:15]} 13. Bxe6 {[%clk 0:02:25]}  fxe6 {[%clk 0:02:15]} 14. Qe2 {[%clk 0:02:25]}  Kf7 {[%clk 0:02:03]} 15. Ne4 {[%clk 0:02:24]}  Nxe4 {[%clk 0:01:57]} 16. Qxe4 {[%clk 0:02:25]}  Qxe4 {[%clk 0:01:49]} 17. Rxe4 {[%clk 0:02:24]}  Rad8 {[%clk 0:01:50]} 18. Re1 {[%clk 0:01:59]}  Rd5 {[%clk 0:01:49]} 19. c3 {[%clk 0:01:59]}  Rhd8 {[%clk 0:01:37]} 20. Be3 {[%clk 0:01:58]}  Rb5 {[%clk 0:01:38]} 21. Rab1 {[%clk 0:01:55]}  a5 {[%clk 0:01:38]} 22. Kf1 {[%clk 0:01:54]}  a4 {[%clk 0:01:37]} 23. a3 {[%clk 0:01:46]}  Rb3 {[%clk 0:01:32]} 24. Ke2 {[%clk 0:01:40]}  Rd5 {[%clk 0:01:32]} 25. h3 {[%clk 0:01:29]}  Rdb5 {[%clk 0:01:31]} 26. Rbd1 {[%clk 0:01:01]}  Rxb2+ {[%clk 0:01:30]} 27. Kf3 {[%clk 0:01:01]}  Bxc3 {[%clk 0:01:30]} 28. Rf1 {[%clk 0:01:02]}  R2b3 {[%clk 0:01:30]} 29. Rd7 {[%clk 0:01:01]}  Rxa3 {[%clk 0:01:23]} 30. Rc7 {[%clk 0:00:50]}  Bd4 {[%clk 0:01:20]} 31. Rd1 {[%clk 0:00:40]}  Bb6 {[%clk 0:01:14]} 32. Rcd7 {[%clk 0:00:00]}  Rab3 {[%clk 0:01:07]} 0-1


[Site "https://www.chess.com"]

[Event "Titled Tuesday Blitz May 30 Early 2023"]
[White "Bolourchifard, Farzad"]
[Black "Kokoszczynski, Jan"]
[WhiteFideId "12510084"]
[BlackFideId "1174460"]
[WhiteElo "2317"]
[BlackElo "2139"]
[Result "1-0"]
[Round "07"]
[TimeControl "180+2"]
[Date "2023.05.30"]
[WhiteClock "0:00:21"]
[BlackClock "0:00:01"]

1. d4 {[%clk 0:03:00]}  Nf6 {[%clk 0:02:58]} 2. Nf3 {[%clk 0:03:00]}  e6 {[%clk 0:02:58]} 3. c4 {[%clk 0:03:00]}  d5 {[%clk 0:02:56]} 4. Nc3 {[%clk 0:03:00]}  Bb4 {[%clk 0:02:55]} 5. Bg5 {[%clk 0:03:00]}  h6 {[%clk 0:02:52]} 6. Bxf6 {[%clk 0:03:00]}  Qxf6 {[%clk 0:02:53]} 7. e3 {[%clk 0:03:01]}  O-O {[%clk 0:02:52]} 8. cxd5 {[%clk 0:02:55]}  exd5 {[%clk 0:02:51]} 9. Be2 {[%clk 0:02:56]}  c6 {[%clk 0:02:50]} 10. O-O {[%clk 0:02:56]}  Bf5 {[%clk 0:02:34]} 11. Ne5 {[%clk 0:02:53]}  Qe7 {[%clk 0:02:17]} 12. Bd3 {[%clk 0:02:48]}  Bxd3 {[%clk 0:02:15]} 13. Nxd3 {[%clk 0:02:49]}  Bd6 {[%clk 0:02:14]} 14. b4 {[%clk 0:02:50]}  Bxb4 {[%clk 0:02:04]} 15. Na4 {[%clk 0:02:44]}  Bd6 {[%clk 0:01:58]} 16. Nac5 {[%clk 0:02:43]}  b6 {[%clk 0:01:56]} 17. Nb3 {[%clk 0:02:40]}  Nd7 {[%clk 0:01:55]} 18. Rc1 {[%clk 0:02:40]}  Rac8 {[%clk 0:01:55]} 19. Qd2 {[%clk 0:02:34]}  c5 {[%clk 0:01:22]} 20. dxc5 {[%clk 0:02:34]}  bxc5 {[%clk 0:01:23]} 21. Ne1 {[%clk 0:02:17]}  Nf6 {[%clk 0:01:21]} 22. Nf3 {[%clk 0:02:16]}  Rfd8 {[%clk 0:01:20]} 23. h3 {[%clk 0:02:15]}  Bb8 {[%clk 0:00:58]} 24. Qa5 {[%clk 0:02:12]}  Ne4 {[%clk 0:00:56]} 25. Rfd1 {[%clk 0:02:10]}  Rd7 {[%clk 0:00:22]} 26. Rc2 {[%clk 0:02:05]}  Rcd8 {[%clk 0:00:12]} 27. Rb1 {[%clk 0:01:21]}  d4 {[%clk 0:00:11]} 28. exd4 {[%clk 0:01:18]}  cxd4 {[%clk 0:00:12]} 29. Nbxd4 {[%clk 0:01:18]}  Rd5 {[%clk 0:00:10]} 30. Qa6 {[%clk 0:01:11]}  Bf4 {[%clk 0:00:08]} 31. Rc8 {[%clk 0:01:08]}  Kh7 {[%clk 0:00:07]} 32. Rxd8 {[%clk 0:00:42]}  Qxd8 {[%clk 0:00:08]} 33. Qd3 {[%clk 0:00:29]}  f5 {[%clk 0:00:04]} 34. Qc4 {[%clk 0:00:28]}  Nf6 {[%clk 0:00:03]} 35. Rf1 {[%clk 0:00:24]}  Be5 {[%clk 0:00:03]} 36. Nc6 {[%clk 0:00:22]}  Qc7 {[%clk 0:00:01]} 37. Ncxe5 {[%clk 0:00:21]} 1-0


[Site "https://www.chess.com"]

[Event "Titled Tuesday Blitz May 30 Early 2023"]
[White "Koutlas, Nikolaos"]
[Black "Kleiman, Jake"]
[WhiteFideId "25827138"]
[BlackFideId "2020041"]
[WhiteElo "2215"]
[BlackElo "2596"]
[Result "0-1"]
[Round "07"]
[TimeControl "180+2"]
[Date "2023.05.30"]
[WhiteClock "0:00:09"]
[BlackClock "0:00:07"]

1. Nf3 {[%clk 0:03:00]}  d5 {[%clk 0:02:58]} 2. c4 {[%clk 0:02:59]}  e6 {[%clk 0:02:58]} 3. g3 {[%clk 0:02:59]}  Nf6 {[%clk 0:02:58]} 4. Bg2 {[%clk 0:02:59]}  g6 {[%clk 0:02:58]} 5. O-O {[%clk 0:02:59]}  Bg7 {[%clk 0:02:59]} 6. Nc3 {[%clk 0:02:55]}  O-O {[%clk 0:03:00]} 7. cxd5 {[%clk 0:02:53]}  exd5 {[%clk 0:03:00]} 8. d4 {[%clk 0:02:54]}  Re8 {[%clk 0:03:00]} 9. Ne5 {[%clk 0:02:52]}  c6 {[%clk 0:02:55]} 10. Bf4 {[%clk 0:02:49]}  Nfd7 {[%clk 0:02:52]} 11. Nf3 {[%clk 0:02:47]}  Nb6 {[%clk 0:02:46]} 12. Re1 {[%clk 0:02:46]}  Bf5 {[%clk 0:02:45]} 13. Nh4 {[%clk 0:02:42]}  Be6 {[%clk 0:02:44]} 14. e4 {[%clk 0:02:36]}  g5 {[%clk 0:02:37]} 15. exd5 {[%clk 0:02:28]}  cxd5 {[%clk 0:02:37]} 16. Bxb8 {[%clk 0:02:26]}  Rxb8 {[%clk 0:02:30]} 17. Nf3 {[%clk 0:02:25]}  h6 {[%clk 0:02:29]} 18. Ne5 {[%clk 0:02:21]}  Rc8 {[%clk 0:02:28]} 19. Qb3 {[%clk 0:02:04]}  Re7 {[%clk 0:01:43]} 20. Re2 {[%clk 0:02:00]}  Nc4 {[%clk 0:01:35]} 21. Ng6 {[%clk 0:01:41]}  Re8 {[%clk 0:01:10]} 22. Rae1 {[%clk 0:01:38]}  Kh7 {[%clk 0:00:34]} 23. Bxd5 {[%clk 0:01:08]}  Kxg6 {[%clk 0:00:21]} 24. Bxc4 {[%clk 0:00:54]}  Bxc4 {[%clk 0:00:17]} 25. Qc2+ {[%clk 0:00:53]}  f5 {[%clk 0:00:13]} 26. Rxe8 {[%clk 0:00:52]}  Qxe8 {[%clk 0:00:12]} 27. Rxe8 {[%clk 0:00:52]}  Rxe8 {[%clk 0:00:13]} 28. Qd2 {[%clk 0:00:34]}  Rd8 {[%clk 0:00:10]} 29. d5 {[%clk 0:00:32]}  Bxc3 {[%clk 0:00:09]} 30. Qxc3 {[%clk 0:00:31]}  Bxd5 {[%clk 0:00:09]} 31. Qd4 {[%clk 0:00:27]}  Rd7 {[%clk 0:00:09]} 32. Qxa7 {[%clk 0:00:26]}  Bc6 {[%clk 0:00:08]} 33. Kf1 {[%clk 0:00:18]}  Bf3 {[%clk 0:00:06]} 34. Qb6+ {[%clk 0:00:13]}  Kh7 {[%clk 0:00:06]} 35. Qb3 {[%clk 0:00:12]}  Rd1+ {[%clk 0:00:06]} 36. Qxd1 {[%clk 0:00:12]}  Bxd1 {[%clk 0:00:07]} 37. Ke1 {[%clk 0:00:11]}  Bf3 {[%clk 0:00:07]} 38. Kd2 {[%clk 0:00:12]}  Kg6 {[%clk 0:00:08]} 39. Ke3 {[%clk 0:00:12]}  Bd5 {[%clk 0:00:08]} 40. a4 {[%clk 0:00:12]}  Kf6 {[%clk 0:00:08]} 41. Kd4 {[%clk 0:00:13]}  Bb3 {[%clk 0:00:08]} 42. a5 {[%clk 0:00:12]}  Ke6 {[%clk 0:00:09]} 43. Kc5 {[%clk 0:00:13]}  Kd7 {[%clk 0:00:07]} 44. Kb6 {[%clk 0:00:13]}  Bd5 {[%clk 0:00:07]} 45. b4 {[%clk 0:00:13]}  Ke6 {[%clk 0:00:07]} 46. b5 {[%clk 0:00:13]}  Ke5 {[%clk 0:00:08]} 47. Kc5 {[%clk 0:00:10]}  Bf3 {[%clk 0:00:07]} 48. a6 {[%clk 0:00:10]}  bxa6 {[%clk 0:00:07]} 49. bxa6 {[%clk 0:00:10]}  Ke4 {[%clk 0:00:06]} 50. a7 {[%clk 0:00:09]}  Kd3 {[%clk 0:00:07]} 51. Kd6 {[%clk 0:00:10]}  Ke2 {[%clk 0:00:07]} 52. Ke5 {[%clk 0:00:10]}  Kxf2 {[%clk 0:00:07]} 53. Kxf5 {[%clk 0:00:10]}  Kg2 {[%clk 0:00:06]} 54. Kg6 {[%clk 0:00:10]}  Kxh2 {[%clk 0:00:06]} 55. Kxh6 {[%clk 0:00:11]}  g4 {[%clk 0:00:06]} 56. Kh5 {[%clk 0:00:09]}  Kxg3 {[%clk 0:00:07]} 0-1


[Site "https://www.chess.com"]

[Event "Titled Tuesday Blitz May 30 Early 2023"]
[White "Fishchuk, Vladyslav"]
[Black "Bartel, Michal"]
[WhiteFideId "34122117"]
[BlackFideId "1119257"]
[WhiteElo "2082"]
[BlackElo "2282"]
[Result "0-1"]
[Round "07"]
[TimeControl "180+2"]
[Date "2023.05.30"]
[WhiteClock "0:00:06"]
[BlackClock "0:00:24"]

1. e4 {[%clk 0:03:00]}  e5 {[%clk 0:02:57]} 2. Nf3 {[%clk 0:03:00]}  Nc6 {[%clk 0:02:54]} 3. Nc3 {[%clk 0:02:59]}  g6 {[%clk 0:02:52]} 4. d4 {[%clk 0:02:55]}  exd4 {[%clk 0:02:50]} 5. Nd5 {[%clk 0:02:55]}  Bg7 {[%clk 0:02:45]} 6. Bg5 {[%clk 0:02:55]}  Nce7 {[%clk 0:02:40]} 7. Nxd4 {[%clk 0:02:50]}  c6 {[%clk 0:02:37]} 8. Nc3 {[%clk 0:02:48]}  h6 {[%clk 0:02:33]} 9. Be3 {[%clk 0:02:48]}  d5 {[%clk 0:02:31]} 10. Be2 {[%clk 0:02:03]}  c5 {[%clk 0:02:21]} 11. Ndb5 {[%clk 0:02:01]}  d4 {[%clk 0:02:17]} 12. Bf4 {[%clk 0:02:01]}  Kf8 {[%clk 0:02:06]} 13. O-O {[%clk 0:01:56]}  Be6 {[%clk 0:01:58]} 14. Na4 {[%clk 0:01:50]}  b6 {[%clk 0:01:48]} 15. Nc7 {[%clk 0:01:46]}  Rc8 {[%clk 0:01:35]} 16. Nxe6+ {[%clk 0:01:45]}  fxe6 {[%clk 0:01:36]} 17. b3 {[%clk 0:01:23]}  Nf6 {[%clk 0:01:31]} 18. Bd3 {[%clk 0:01:19]}  Nc6 {[%clk 0:01:27]} 19. a3 {[%clk 0:01:17]}  e5 {[%clk 0:01:24]} 20. Bd2 {[%clk 0:01:09]}  g5 {[%clk 0:01:22]} 21. Nb2 {[%clk 0:01:08]}  Kg8 {[%clk 0:01:18]} 22. h4 {[%clk 0:00:40]}  g4 {[%clk 0:00:56]} 23. f3 {[%clk 0:00:26]}  Qd7 {[%clk 0:00:51]} 24. fxg4 {[%clk 0:00:21]}  Nxg4 {[%clk 0:00:43]} 25. Rf5 {[%clk 0:00:18]}  h5 {[%clk 0:00:36]} 26. Bc4+ {[%clk 0:00:15]}  Kh7 {[%clk 0:00:37]} 27. Rf7 {[%clk 0:00:14]}  Qe8 {[%clk 0:00:33]} 28. a4 {[%clk 0:00:10]}  Rf8 {[%clk 0:00:31]} 29. Rxf8 {[%clk 0:00:10]}  Qxf8 {[%clk 0:00:32]} 30. Nd3 {[%clk 0:00:10]}  Qf6 {[%clk 0:00:27]} 31. Qe2 {[%clk 0:00:10]}  Qxh4 {[%clk 0:00:26]} 32. Nf2 {[%clk 0:00:05]}  Qh2+ {[%clk 0:00:24]} 33. Kf1 {[%clk 0:00:06]}  Rf8 {[%clk 0:00:24]} 34. Be1 {[%clk 0:00:06]}  Qh1# {[%clk 0:00:24]} 0-1


[Site "https://www.chess.com"]

[Event "Titled Tuesday Blitz May 30 Early 2023"]
[White "Mamedov, Edgar"]
[Black "Grave, Jacob Templen"]
[WhiteFideId "13739980"]
[BlackFideId "1542656"]
[WhiteElo "2317"]
[BlackElo "2189"]
[Result "0-1"]
[Round "07"]
[TimeControl "180+2"]
[Date "2023.05.30"]
[WhiteClock "0:00:01"]
[BlackClock "0:00:02"]

1. e4 {[%clk 0:02:59]}  c5 {[%clk 0:02:56]} 2. Nf3 {[%clk 0:02:59]}  Nc6 {[%clk 0:02:52]} 3. Nc3 {[%clk 0:02:55]}  g6 {[%clk 0:02:40]} 4. Bb5 {[%clk 0:02:48]}  Nd4 {[%clk 0:02:35]} 5. Bc4 {[%clk 0:02:43]}  Bg7 {[%clk 0:02:34]} 6. O-O {[%clk 0:02:42]}  a6 {[%clk 0:02:09]} 7. a4 {[%clk 0:02:37]}  d6 {[%clk 0:02:09]} 8. h3 {[%clk 0:02:37]}  e6 {[%clk 0:01:58]} 9. d3 {[%clk 0:02:32]}  Ne7 {[%clk 0:01:58]} 10. Be3 {[%clk 0:02:29]}  Nec6 {[%clk 0:01:48]} 11. Ne1 {[%clk 0:02:00]}  O-O {[%clk 0:01:47]} 12. Qd2 {[%clk 0:01:59]}  Rb8 {[%clk 0:01:29]} 13. Bh6 {[%clk 0:01:56]}  b5 {[%clk 0:01:26]} 14. Bxg7 {[%clk 0:01:54]}  Kxg7 {[%clk 0:01:27]} 15. axb5 {[%clk 0:01:53]}  axb5 {[%clk 0:01:28]} 16. Bb3 {[%clk 0:01:52]}  Nxb3 {[%clk 0:01:27]} 17. cxb3 {[%clk 0:01:51]}  Nd4 {[%clk 0:01:27]} 18. Qd1 {[%clk 0:01:47]}  b4 {[%clk 0:01:20]} 19. Ne2 {[%clk 0:01:47]}  e5 {[%clk 0:01:13]} 20. Nxd4 {[%clk 0:01:42]}  cxd4 {[%clk 0:01:09]} 21. Qd2 {[%clk 0:01:40]}  Be6 {[%clk 0:01:08]} 22. Ra4 {[%clk 0:01:34]}  Qb6 {[%clk 0:01:04]} 23. Nc2 {[%clk 0:01:32]}  Rfc8 {[%clk 0:00:39]} 24. Raa1 {[%clk 0:01:07]}  Bxb3 {[%clk 0:00:36]} 25. Ne1 {[%clk 0:01:06]}  Qb5 {[%clk 0:00:25]} 26. f4 {[%clk 0:01:01]}  f6 {[%clk 0:00:26]} 27. fxe5 {[%clk 0:00:58]}  dxe5 {[%clk 0:00:25]} 28. Ra7+ {[%clk 0:00:58]}  Rb7 {[%clk 0:00:24]} 29. Rxb7+ {[%clk 0:00:57]}  Qxb7 {[%clk 0:00:25]} 30. g4 {[%clk 0:00:54]}  h6 {[%clk 0:00:18]} 31. Qf2 {[%clk 0:00:50]}  Rc6 {[%clk 0:00:17]} 32. Kh2 {[%clk 0:00:45]}  Qd7 {[%clk 0:00:14]} 33. Kg3 {[%clk 0:00:44]}  Qe6 {[%clk 0:00:13]} 34. h4 {[%clk 0:00:43]}  Qe7 {[%clk 0:00:07]} 35. Qd2 {[%clk 0:00:34]}  Be6 {[%clk 0:00:05]} 36. g5 {[%clk 0:00:28]}  fxg5 {[%clk 0:00:04]} 37. hxg5 {[%clk 0:00:27]}  Qxg5+ {[%clk 0:00:05]} 38. Qxg5 {[%clk 0:00:27]}  hxg5 {[%clk 0:00:06]} 39. Nf3 {[%clk 0:00:18]}  Rc2 {[%clk 0:00:06]} 40. Rf2 {[%clk 0:00:18]}  Rxf2 {[%clk 0:00:04]} 41. Kxf2 {[%clk 0:00:19]}  Kf6 {[%clk 0:00:05]} 42. Nd2 {[%clk 0:00:18]}  g4 {[%clk 0:00:04]} 43. Kg3 {[%clk 0:00:18]}  Kg5 {[%clk 0:00:04]} 44. b3 {[%clk 0:00:12]}  Bf7 {[%clk 0:00:03]} 45. Kf2 {[%clk 0:00:10]}  Kf4 {[%clk 0:00:03]} 46. Ke2 {[%clk 0:00:08]}  g5 {[%clk 0:00:02]} 47. Kf2 {[%clk 0:00:05]}  g3+ {[%clk 0:00:03]} 48. Kg2 {[%clk 0:00:06]}  Be6 {[%clk 0:00:03]} 49. Nc4 {[%clk 0:00:04]}  Bxc4 {[%clk 0:00:03]} 50. dxc4 {[%clk 0:00:04]}  d3 {[%clk 0:00:02]} 51. Kf1 {[%clk 0:00:02]}  d2 {[%clk 0:00:02]} 52. Ke2 {[%clk 0:00:01]}  g2 {[%clk 0:00:02]} 0-1


[Site "https://www.chess.com"]

[Event "Titled Tuesday Blitz May 30 Early 2023"]
[White "Sharapov, Evgeny"]
[Black "Zaitsev, Alexander"]
[WhiteFideId "14103133"]
[BlackFideId "4164490"]
[WhiteElo "2367"]
[BlackElo "2373"]
[Result "0-1"]
[Round "07"]
[TimeControl "180+2"]
[Date "2023.05.30"]
[WhiteClock "0:00:05"]
[BlackClock "0:00:10"]

1. e4 {[%clk 0:02:59]}  c5 {[%clk 0:02:59]} 2. Nf3 {[%clk 0:02:59]}  g6 {[%clk 0:03:00]} 3. d4 {[%clk 0:02:59]}  cxd4 {[%clk 0:03:01]} 4. Nxd4 {[%clk 0:02:59]}  Bg7 {[%clk 0:03:01]} 5. c4 {[%clk 0:03:00]}  Nc6 {[%clk 0:03:01]} 6. Be3 {[%clk 0:02:59]}  Qb6 {[%clk 0:03:02]} 7. Nb3 {[%clk 0:02:59]}  Qd8 {[%clk 0:03:01]} 8. Nc3 {[%clk 0:02:59]}  Nf6 {[%clk 0:02:53]} 9. Be2 {[%clk 0:02:57]}  a5 {[%clk 0:02:46]} 10. a3 {[%clk 0:02:50]}  d6 {[%clk 0:02:34]} 11. O-O {[%clk 0:02:49]}  O-O {[%clk 0:02:26]} 12. f3 {[%clk 0:02:49]}  a4 {[%clk 0:02:15]} 13. Nd2 {[%clk 0:02:48]}  Qa5 {[%clk 0:02:09]} 14. Nd5 {[%clk 0:02:44]}  Nd7 {[%clk 0:02:04]} 15. Rb1 {[%clk 0:02:39]}  e6 {[%clk 0:02:02]} 16. Nf4 {[%clk 0:02:36]}  Nc5 {[%clk 0:01:45]} 17. Kh1 {[%clk 0:02:33]}  Nd4 {[%clk 0:01:38]} 18. Nd3 {[%clk 0:02:28]}  e5 {[%clk 0:01:19]} 19. Nc1 {[%clk 0:02:17]}  Be6 {[%clk 0:01:16]} 20. Na2 {[%clk 0:02:13]}  Rac8 {[%clk 0:01:09]} 21. Nb4 {[%clk 0:02:11]}  f5 {[%clk 0:01:09]} 22. exf5 {[%clk 0:02:00]}  Bxf5 {[%clk 0:01:07]} 23. Rc1 {[%clk 0:01:59]}  Kh8 {[%clk 0:00:52]} 24. Rc3 {[%clk 0:01:35]}  Rce8 {[%clk 0:00:51]} 25. Nd5 {[%clk 0:01:31]}  Nxe2 {[%clk 0:00:37]} 26. Qxe2 {[%clk 0:01:30]}  e4 {[%clk 0:00:37]} 27. fxe4 {[%clk 0:01:21]}  Bxc3 {[%clk 0:00:37]} 28. exf5 {[%clk 0:01:15]}  Bg7 {[%clk 0:00:18]} 29. fxg6 {[%clk 0:00:49]}  hxg6 {[%clk 0:00:17]} 30. Rxf8+ {[%clk 0:00:48]}  Rxf8 {[%clk 0:00:17]} 31. h3 {[%clk 0:00:33]}  Qd8 {[%clk 0:00:17]} 32. Qg4 {[%clk 0:00:32]}  Qe8 {[%clk 0:00:11]} 33. Nf3 {[%clk 0:00:26]}  Ne4 {[%clk 0:00:10]} 34. Qh4+ {[%clk 0:00:22]}  Kg8 {[%clk 0:00:10]} 35. Ne7+ {[%clk 0:00:21]}  Kf7 {[%clk 0:00:10]} 36. Qxe4 {[%clk 0:00:19]}  Qxe7 {[%clk 0:00:11]} 37. Qd5+ {[%clk 0:00:15]}  Ke8 {[%clk 0:00:09]} 38. Bg5 {[%clk 0:00:12]}  Qd7 {[%clk 0:00:07]} 39. Nd4 {[%clk 0:00:09]}  Rf1+ {[%clk 0:00:06]} 40. Kh2 {[%clk 0:00:09]}  Be5+ {[%clk 0:00:07]} 41. g3 {[%clk 0:00:09]}  Qf7 {[%clk 0:00:07]} 42. Be3 {[%clk 0:00:05]}  Qxd5 {[%clk 0:00:07]} 43. cxd5 {[%clk 0:00:05]}  Bxd4 {[%clk 0:00:08]} 44. Bxd4 {[%clk 0:00:05]}  Rd1 {[%clk 0:00:08]} 45. Bc3 {[%clk 0:00:05]}  Rxd5 {[%clk 0:00:08]} 46. Kg2 {[%clk 0:00:06]}  Kf7 {[%clk 0:00:09]} 47. Kf3 {[%clk 0:00:06]}  Ke6 {[%clk 0:00:09]} 48. Ke4 {[%clk 0:00:07]}  Rc5 {[%clk 0:00:08]} 49. h4 {[%clk 0:00:07]}  Rc4+ {[%clk 0:00:09]} 50. Kd3 {[%clk 0:00:07]}  b5 {[%clk 0:00:09]} 51. Ke3 {[%clk 0:00:07]}  Kf5 {[%clk 0:00:10]} 52. Kf3 {[%clk 0:00:05]}  d5 {[%clk 0:00:10]} 0-1


[Site "https://www.chess.com"]

[Event "Titled Tuesday Blitz May 30 Early 2023"]
[White "Baghdasaryan, Vahe"]
[Black "Srdanovic, Jovana"]
[WhiteFideId "13303139"]
[BlackFideId "954810"]
[WhiteElo "2216"]
[BlackElo "2169"]
[Result "1/2-1/2"]
[Round "07"]
[TimeControl "180+2"]
[Date "2023.05.30"]
[WhiteClock "0:00:14"]
[BlackClock "0:00:13"]

1. d4 {[%clk 0:03:00]}  a6 {[%clk 0:02:59]} 2. e4 {[%clk 0:02:48]}  c6 {[%clk 0:02:57]} 3. c4 {[%clk 0:02:45]}  d5 {[%clk 0:02:56]} 4. exd5 {[%clk 0:02:42]}  cxd5 {[%clk 0:02:57]} 5. Nc3 {[%clk 0:02:42]}  Nf6 {[%clk 0:02:56]} 6. Nf3 {[%clk 0:02:41]}  g6 {[%clk 0:02:56]} 7. Qb3 {[%clk 0:02:09]}  Bg7 {[%clk 0:02:55]} 8. cxd5 {[%clk 0:02:02]}  O-O {[%clk 0:02:56]} 9. Be2 {[%clk 0:01:58]}  b5 {[%clk 0:02:56]} 10. a4 {[%clk 0:01:43]}  bxa4 {[%clk 0:02:47]} 11. Rxa4 {[%clk 0:01:41]}  Nbd7 {[%clk 0:02:42]} 12. O-O {[%clk 0:01:32]}  Nb6 {[%clk 0:02:42]} 13. Ra5 {[%clk 0:01:32]}  Rb8 {[%clk 0:02:26]} 14. Qa2 {[%clk 0:01:30]}  Bb7 {[%clk 0:02:23]} 15. Bxa6 {[%clk 0:01:21]}  Bxd5 {[%clk 0:02:18]} 16. Nxd5 {[%clk 0:01:20]}  Nbxd5 {[%clk 0:02:19]} 17. Bd2 {[%clk 0:01:14]}  Nb4 {[%clk 0:02:15]} 18. Bxb4 {[%clk 0:01:13]}  Rxb4 {[%clk 0:02:14]} 19. Bc4 {[%clk 0:01:11]}  Qb8 {[%clk 0:02:07]} 20. Bxf7+ {[%clk 0:01:07]}  Kh8 {[%clk 0:02:01]} 21. b3 {[%clk 0:01:07]}  Qf4 {[%clk 0:01:42]} 22. Ra8 {[%clk 0:01:03]}  Rbb8 {[%clk 0:01:36]} 23. Rxb8 {[%clk 0:01:02]}  Qxb8 {[%clk 0:01:35]} 24. Bc4 {[%clk 0:01:01]}  Ng4 {[%clk 0:01:29]} 25. h3 {[%clk 0:01:01]}  Rxf3 {[%clk 0:01:29]} 26. hxg4 {[%clk 0:01:01]}  Bxd4 {[%clk 0:01:21]} 27. Bd5 {[%clk 0:00:43]}  Rf4 {[%clk 0:01:08]} 28. Qe2 {[%clk 0:00:43]}  Qa7 {[%clk 0:01:02]} 29. Qe6 {[%clk 0:00:32]}  Rf8 {[%clk 0:00:53]} 30. g5 {[%clk 0:00:22]}  Bxf2+ {[%clk 0:00:39]} 31. Kh1 {[%clk 0:00:22]}  Qd4 {[%clk 0:00:35]} 32. Rxf2 {[%clk 0:00:22]}  Qh4+ {[%clk 0:00:28]} 33. Qh3 {[%clk 0:00:21]}  Qxh3+ {[%clk 0:00:25]} 34. gxh3 {[%clk 0:00:22]}  Rxf2 {[%clk 0:00:25]} 35. Kg1 {[%clk 0:00:19]}  Rd2 {[%clk 0:00:24]} 36. Bc4 {[%clk 0:00:18]}  Kg7 {[%clk 0:00:20]} 37. Kh1 {[%clk 0:00:18]}  h6 {[%clk 0:00:20]} 38. gxh6+ {[%clk 0:00:18]}  Kxh6 {[%clk 0:00:21]} 39. Kg1 {[%clk 0:00:19]}  Kh5 {[%clk 0:00:19]} 40. Be6 {[%clk 0:00:19]}  g5 {[%clk 0:00:17]} 41. Kf1 {[%clk 0:00:19]}  Kh4 {[%clk 0:00:16]} 42. Ke1 {[%clk 0:00:16]}  Rb2 {[%clk 0:00:15]} 43. Kd1 {[%clk 0:00:15]}  Kg3 {[%clk 0:00:13]} 44. Kc1 {[%clk 0:00:15]}  Rxb3 {[%clk 0:00:13]} 45. Bxb3 {[%clk 0:00:15]}  Kxh3 {[%clk 0:00:14]} 46. Be6+ {[%clk 0:00:14]}  g4 {[%clk 0:00:14]} 47. Kd2 {[%clk 0:00:14]}  Kg3 {[%clk 0:00:14]} 48. Ke3 {[%clk 0:00:13]}  Kh4 {[%clk 0:00:13]} 49. Bxg4 {[%clk 0:00:12]}  Kxg4 {[%clk 0:00:13]} 50. Ke4 {[%clk 0:00:13]}  e5 {[%clk 0:00:13]} 51. Kxe5 {[%clk 0:00:14]} 1/2-1/2


[Site "https://www.chess.com"]